bitfinex/quotes_SOLUSD_20250321
["timestamp","ask_amount","ask_price","bid_price","bid_amount"]
[1742536808706,72.9961236,128.39,128.38,0.063]
[1742536808899,7.9707,128.37,128.31,93.44754423]
[1742536809203,14.59922472,128.32,128.3,0.063]
[1742536809403,14.59922472,128.32,128.31,6.66]
[1742536813192,14.59922472,128.32,128.31,14.4536]
[1742536813409,14.59922472,128.37,128.33,20.0]
[1742536813600,14.59922472,128.37,128.33,115.76922472]
[1742536813799,14.59922472,128.37,128.34,7.7918]
[1742536814001,14.59922472,128.37,128.35,6.66]
[1742536815618,14.59922472,128.36,128.35,6.66]
[1742536815995,14.59922472,128.36,128.35,14.4511]
[1742536816195,14.59922472,128.37,128.35,14.4511]
[1742536818805,14.59922472,128.38,128.35,34.4511]
[1742536819004,14.59922472,128.39,128.35,34.4511]
[1742536819720,14.59922472,128.4,128.35,68.52822472]
[1742536819908,14.59922472,128.4,128.35,149.69822472]
[1742536820105,14.59922472,128.4,128.36,14.59922472]
[1742536820305,14.59922472,128.4,128.35,149.69822472]
[1742536822323,14.59922472,128.41,128.37,7.7899]
[1742536822529,0.03,128.4,128.37,7.7899]
[1742536823628,14.62922472,128.4,128.37,7.7899]
[1742536825410,0.03,128.4,128.37,7.7899]
[1742536826516,0.03,128.4,128.37,27.7899]
[1742536828224,14.62922472,128.4,128.37,20.0]
[1742536828409,14.59922472,128.39,128.37,20.0]
[1742536830134,14.59922472,128.39,128.36,89.24462314]
[1742536831031,14.59922472,128.38,128.35,115.6839]
[1742536834336,14.59922472,128.39,128.35,115.6839]
[1742536835533,0.03,128.38,128.35,115.6839]
[1742536842543,0.03,128.38,128.35,130.28312472]
[1742536844537,0.03,128.38,128.35,123.62312472]
[1742536844742,0.03,128.38,128.36,14.4303]
[1742536848549,0.03,128.38,128.37,20.28432314]
[1742536850534,0.03,128.38,128.37,42.67344786]
[1742536851048,0.03,128.38,128.37,28.07422314]
[1742536853557,0.03,128.38,128.36,95.6005]
[1742536864644,14.62922472,128.38,128.36,95.6005]
[1742536865353,14.59922472,128.37,128.36,87.81]
[1742536865540,14.59922472,128.37,128.36,6.64]
[1742536869965,0.03,128.38,128.36,6.64]
[1742536870156,0.03,128.38,128.36,14.4305]
[1742536870668,0.03,128.38,128.37,20.28432314]
[1742536870963,0.03,128.38,128.37,20.56864628]
[1742536872264,0.03,128.38,128.37,142.77741986]
[1742536873865,0.03,128.38,128.37,124.127771]
[1742536874170,0.03,128.38,128.37,109.52854628]
[1742536874471,0.03,128.38,128.37,124.127771]
[1742536874971,0.03,128.38,128.37,109.52854628]
[1742536875966,0.03,128.38,128.37,109.24422314]
[1742536876469,14.62922472,128.38,128.37,87.81]
[1742536876860,0.03,128.38,128.37,87.81]
[1742536877977,0.03,128.38,128.37,6.64]
[1742536880483,14.62922472,128.38,128.37,6.64]
[1742536885100,14.62922472,128.38,128.37,6.703]
[1742536890690,22.41852472,128.38,128.37,6.703]
[1742536891988,22.41852472,128.38,128.37,0.063]
[1742536893585,14.62922472,128.38,128.37,0.063]
[1742536895499,22.41852472,128.38,128.37,0.063]
[1742536895995,7.8547,128.37,128.35,0.063]
[1742536896291,14.59922472,128.36,128.35,0.063]
[1742536897398,22.38972472,128.36,128.35,0.063]
[1742536914315,41.86612472,128.36,128.3,6.703]
[1742536914619,41.86612472,128.36,128.3,0.063]
[1742536914620,14.59922472,128.31,128.3,0.063]
[1742536916917,0.03,128.37,128.36,20.0]
[1742536917117,0.03,128.38,128.37,19.21829514]
[1742536917320,0.03,128.44,128.43,20.28432314]
[1742536917521,0.03,128.44,128.43,41.907871]
[1742536917715,0.03,128.44,128.43,49.694171]
[1742536918017,0.03,128.44,128.43,35.09494628]
[1742536918318,14.62922472,128.44,128.43,6.74]
[1742536918520,14.62922472,128.44,128.41,26.76]
[1742536919608,0.03,128.44,128.41,26.76]
[1742536919925,0.03,128.44,128.41,34.5474]
[1742536920101,0.03,128.44,128.41,49.14662472]
[1742536920304,0.03,128.44,128.42,0.28432314]
[1742536920624,0.03,128.44,128.42,14.88354786]
[1742536921820,0.03,128.44,128.42,0.28432314]
[1742536922001,0.03,128.44,128.42,8.07082314]
[1742536923426,0.03,128.44,128.42,22.67004786]
[1742536923732,0.03,128.44,128.42,8.07082314]
[1742536924626,0.03,128.44,128.42,22.67004786]
[1742536925810,0.03,128.44,128.42,8.07082314]
[1742536926709,0.03,128.44,128.42,22.67004786]
[1742536930139,0.03,128.44,128.43,34.88354786]
[1742536930305,0.03,128.44,128.43,53.81751986]
[1742536932931,0.03,128.44,128.43,142.77381986]
[1742536933338,0.03,128.44,128.43,144.33022896]
[1742536936019,0.03,128.44,128.43,142.77381986]
[1742536940035,0.03,128.44,128.43,144.33024443]
[1742536940426,0.03,128.44,128.43,142.77381986]
[1742536942428,0.03,128.44,128.43,144.33026495]
[1742536942923,0.03,128.44,128.43,142.77381986]
[1742536943841,0.03,128.44,128.43,144.33028557]
[1742536944143,0.03,128.44,128.43,142.77381986]
[1742536944436,0.03,128.44,128.43,144.33024862]
[1742536946631,2.7636413,128.47,128.43,144.33024862]
[1742536946632,2.7636413,128.47,128.46,53.53319672]
[1742536946833,2.7636413,128.47,128.46,141.40319672]
[1742536947737,2.7636413,128.47,128.46,130.822371]
[1742536949827,2.7636413,128.47,128.46,149.47201986]
[1742536951049,2.7636413,128.47,128.46,108.15432314]
[1742536951243,2.7636413,128.47,128.46,115.93882314]
[1742536953044,2.7636413,128.47,128.46,108.15432314]
[1742536954252,2.7636413,128.47,128.46,115.93882314]
[1742536957052,2.7636413,128.47,128.46,34.76882314]
[1742536957650,2.7936413,128.47,128.46,34.76882314]
[1742536957950,2.7936413,128.47,128.46,26.98432314]
[1742536959252,2.7936413,128.47,128.46,34.76882314]
[1742536960352,2.7936413,128.47,128.46,49.652371]
[1742536961751,2.7936413,128.47,128.46,49.36804786]
[1742536961955,2.7936413,128.47,128.46,34.76882314]
[1742536963068,2.7936413,128.47,128.46,49.36804786]
[1742536966663,2.7936413,128.47,128.46,34.76882314]
[1742536970261,2.7936413,128.47,128.46,26.98432314]
[1742536970771,2.7936413,128.47,128.46,34.76882314]
[1742536974480,2.7936413,128.47,128.46,49.36804786]
[1742536974684,2.7936413,128.47,128.46,49.652371]
[1742536974853,2.7936413,128.47,128.46,68.30201986]
[1742536975185,2.7936413,128.47,128.46,149.47201986]
[1742536978757,4.24652754,128.53,128.5,20.0]
[1742536978978,14.59922472,128.54,128.51,6.68]
[1742536979182,16.14102472,128.55,128.51,6.68]
[1742536979778,14.59922472,128.54,128.51,6.68]
[1742536979981,14.59922472,128.52,128.51,6.68]
[1742536980960,22.38002472,128.52,128.48,20.0]
[1742536981262,14.59922472,128.51,128.48,6.68]
[1742536982063,14.59922472,128.52,128.48,6.68]
[1742536983172,14.59922472,128.51,128.48,6.68]
[1742536983478,22.38042472,128.52,128.48,6.68]
[1742536983678,22.38042472,128.52,128.48,14.4632]
[1742536983879,22.38042472,128.52,128.48,6.68]
[1742536984473,22.38042472,128.52,128.48,14.4633]
[1742536985661,22.38042472,128.52,128.48,6.68]
[1742536986080,22.38042472,128.52,128.48,14.4633]
[1742536986599,14.59922472,128.52,128.48,14.4633]
[1742536986807,21.12502472,128.53,128.48,49.06252472]
[1742536987395,6.5258,128.53,128.49,14.88354786]
[1742536987579,14.62922472,128.54,128.49,14.88354786]
[1742536987769,14.62922472,128.54,128.5,14.59922472]
[1742536987975,14.62922472,128.54,128.5,34.59922472]
[1742536988171,0.03,128.54,128.5,34.59922472]
[1742536989283,0.03,128.54,128.51,7.7814]
[1742536989284,14.62922472,128.54,128.51,7.7814]
[1742536990303,0.03,128.54,128.51,7.7814]
[1742536990511,0.03,128.54,128.52,6.66]
[1742536991407,0.03,128.54,128.52,14.4408]
[1742536992606,14.62922472,128.54,128.52,6.66]
[1742536993286,14.59922472,128.53,128.52,6.66]
[1742536994903,14.62922472,128.54,128.52,6.66]
[1742536995402,0.03,128.53,128.52,14.4408]
[1742536997687,0.03,128.53,128.52,49.32434786]
[1742536998792,0.03,128.53,128.52,34.72512314]
[1742536998991,0.03,128.53,128.51,0.28432314]
[1742536999323,14.62922472,128.53,128.51,6.66]
[1742536999527,14.59922472,128.52,128.48,20.0]
[1742536999814,14.59922472,128.51,128.48,34.4632]
[1742536999993,22.38012472,128.52,128.48,34.4632]
[1742537000489,14.59922472,128.52,128.48,34.4632]
[1742537001313,22.38012472,128.52,128.48,34.4632]
[1742537003516,22.38012472,128.52,128.48,49.06242472]
[1742537004315,14.59922472,128.52,128.48,49.06242472]
[1742537004895,22.38012472,128.52,128.48,49.06242472]
[1742537005211,14.59922472,128.51,128.48,6.66]
[1742537006023,22.38012472,128.52,128.48,6.66]
[1742537007017,14.59922472,128.51,128.48,6.66]
[1742537009917,14.59922472,128.5,128.48,6.66]
[1742537010118,14.59922472,128.49,128.47,0.063]
[1742537010295,14.59922472,128.48,128.47,0.063]
[1742537010621,14.59922472,128.49,128.47,0.063]
[1742537010831,14.59922472,128.5,128.47,0.063]
[1742537011928,22.38132472,128.5,128.47,0.063]
[1742537012306,14.59922472,128.49,128.47,0.063]
[1742537014536,22.38212472,128.49,128.47,0.063]
[1742537015033,14.59922472,128.48,128.47,0.063]
[1742537016708,22.38252472,128.48,128.47,0.063]
[1742537016908,14.59922472,128.48,128.47,0.063]
[1742537017723,22.38252472,128.48,128.47,0.063]
[1742537023959,14.59922472,128.48,128.47,0.063]
[1742537024551,14.62922472,128.49,128.47,0.063]
[1742537028354,0.03,128.49,128.48,6.64]
[1742537033169,0.03,128.49,128.47,0.063]
[1742537033470,0.03,128.49,128.48,6.64]
[1742537035558,14.62922472,128.49,128.48,6.64]
[1742537038271,14.62922472,128.49,128.47,0.063]
[1742537038451,14.59922472,128.48,128.47,0.063]
[1742537040880,22.41192472,128.49,128.47,0.063]
[1742537041578,14.59922472,128.48,128.47,0.063]
[1742537042901,14.62922472,128.49,128.47,0.063]
[1742537044592,0.03,128.49,128.47,0.063]
[1742537044773,14.62922472,128.49,128.47,0.063]
[1742537045288,22.41192472,128.49,128.47,0.063]
[1742537046390,14.62922472,128.49,128.47,0.063]
[1742537046891,0.03,128.49,128.47,0.063]
[1742537047578,0.03,128.49,128.48,34.88354786]
[1742537047906,0.03,128.49,128.48,42.66684786]
[1742537049079,0.03,128.49,128.48,42.951171]
[1742537050970,0.03,128.49,128.48,69.73211986]
[1742537052579,0.03,128.53,128.51,34.59922472]
[1742537052779,0.03,128.53,128.52,6.62]
[1742537053588,0.03,128.53,128.52,14.68512314]
[1742537053987,0.03,128.53,128.52,29.28434786]
[1742537056686,0.03,128.53,128.52,29.568671]
[1742537059694,0.03,128.53,128.52,6.90432314]
[1742537060798,0.03,128.53,128.52,14.68512314]
[1742537060999,0.03,128.53,128.52,6.90432314]
[1742537061802,0.03,128.53,128.52,14.68512314]
[1742537062579,0.03,128.53,128.52,6.90432314]
[1742537064100,0.03,128.53,128.52,6.62]
[1742537065603,0.03,128.53,128.52,14.4008]
[1742537066094,0.03,128.53,128.52,14.68512314]
[1742537068199,0.03,128.53,128.52,29.568671]
[1742537072097,0.03,128.53,128.52,48.21831986]
[1742537074507,0.03,128.53,128.52,129.38831986]
[1742537083113,0.03,128.54,128.53,38.933972]
[1742537083313,0.03,128.54,128.53,134.70319672]
[1742537084505,0.03,128.54,128.53,142.48339672]
[1742537090217,0.03,128.54,128.53,109.51884628]
[1742537091619,0.03,128.54,128.53,20.0]
[1742537091802,14.62922472,128.54,128.53,20.0]
[1742537092507,0.03,128.54,128.53,20.0]
[1742537092903,14.62922472,128.54,128.49,109.0153]
[1742537093116,14.59922472,128.52,128.5,6.62]
[1742537093504,14.59922472,128.52,128.49,109.29962314]
[1742537093704,14.59922472,128.52,128.5,0.28432314]
[1742537093910,14.59922472,128.53,128.5,6.90432314]
[1742537094722,14.59922472,128.51,128.49,0.063]
[1742537095027,14.59922472,128.5,128.49,0.063]
[1742537095813,22.38122472,128.51,128.49,0.063]
[1742537096525,14.59922472,128.5,128.49,0.063]
[1742537097926,22.38122472,128.51,128.49,0.063]
[1742537098425,14.59922472,128.51,128.49,0.063]
[1742537101315,22.38072472,128.51,128.49,0.063]
[1742537101823,14.59922472,128.5,128.49,0.063]
[1742537102931,22.38072472,128.51,128.49,0.063]
[1742537103139,25.9917,128.54,128.49,0.063]
[1742537103140,14.59922472,128.52,128.49,0.063]
[1742537104013,22.38012472,128.52,128.49,0.063]
[1742537104236,14.59922472,128.5,128.49,0.063]
[1742537105334,14.59922472,128.51,128.49,0.063]
[1742537106326,14.59922472,128.52,128.49,0.063]
[1742537108136,14.59922472,128.51,128.49,0.063]
[1742537112043,14.59922472,128.52,128.49,0.063]
[1742537114356,14.62922472,128.53,128.49,20.063]
[1742537114653,0.03,128.53,128.49,34.66222472]
[1742537114863,14.62922472,128.53,128.49,20.063]
[1742537117452,14.62922472,128.53,128.5,7.7821]
[1742537117833,14.59922472,128.52,128.49,27.8454]
[1742537118041,14.59922472,128.51,128.49,27.8454]
[1742537118446,0.03,128.53,128.49,27.8454]
[1742537118761,0.03,128.53,128.52,0.28432314]
[1742537118932,0.03,128.53,128.52,6.90432314]
[1742537119732,0.03,128.53,128.52,14.68512314]
[1742537132464,0.03,128.53,128.52,6.90432314]
[1742537135254,14.62922472,128.53,128.52,6.62]
[1742537135964,14.62922472,128.53,128.5,0.56864628]
[1742537136162,14.59922472,128.52,128.5,7.18864628]
[1742537136365,14.62922472,128.53,128.5,7.18864628]
[1742537137967,22.40952472,128.53,128.5,6.90432314]
[1742537138163,14.59922472,128.52,128.5,6.90432314]
[1742537138362,14.59922472,128.51,128.49,26.683]
[1742537140459,14.59922472,128.52,128.49,34.4655]
[1742537140871,14.59922472,128.52,128.5,0.063]
[1742537143771,22.38012472,128.52,128.5,0.063]
[1742537145579,14.59922472,128.52,128.5,0.063]
[1742537146271,22.38012472,128.52,128.5,0.063]
[1742537146776,14.59922472,128.52,128.5,0.063]
[1742537148086,14.59922472,128.51,128.5,0.063]
[1742537149160,16.24042472,128.51,128.49,0.063]
[1742537149375,34.59922472,128.5,128.49,0.063]
[1742537150067,42.38132472,128.5,128.49,0.063]
[1742537150267,6.349,128.49,128.47,0.063]
[1742537150470,14.59922472,128.48,128.47,0.063]
[1742537151564,20.0,128.45,128.44,0.063]
[1742537151882,34.59922472,128.45,128.44,0.063]
[1742537154283,42.38432472,128.45,128.44,0.063]
[1742537154474,100.7812236,128.45,128.44,0.063]
[1742537154780,107.4092236,128.45,128.44,0.063]
[1742537155569,147.79303403,128.45,128.4,0.063]
[1742537155789,34.59922472,128.41,128.4,0.063]
[1742537156166,42.38672472,128.41,128.4,0.063]
[1742537161992,34.59922472,128.41,128.4,0.063]
[1742537163707,42.38672472,128.41,128.4,0.063]
[1742537167708,42.38672472,128.41,128.37,0.063]
[1742537167709,80.50517358,128.41,128.37,0.063]
[1742537167898,72.9961236,128.38,128.37,0.063]
[1742537168996,80.7854236,128.38,128.37,0.063]
[1742537180108,22.38852472,128.38,128.37,0.063]
[1742537183495,14.59922472,128.38,128.37,0.063]
[1742537184713,22.38852472,128.38,128.37,0.063]
[1742537185717,80.7854236,128.38,128.37,0.063]
[1742537187034,99.43507246,128.38,128.36,0.063]
[1742537187193,14.59922472,128.37,128.36,0.063]
[1742537187395,33.24887358,128.37,128.36,0.063]
[1742537187617,41.03877358,128.37,128.36,0.063]
[1742537190717,41.32309672,128.37,128.36,0.063]
[1742537190899,18.64964886,128.36,128.35,0.063]
[1742537191097,33.24887358,128.36,128.34,0.063]
[1742537191318,20.0,128.32,128.31,0.063]
[1742537191521,111.64577246,128.32,128.31,0.063]
[1742537192325,53.24887358,128.32,128.31,0.063]
[1742537192734,61.04187358,128.32,128.31,0.063]
[1742537196220,61.32619672,128.32,128.31,0.063]
[1742537196946,197.42619672,128.32,128.31,0.063]
[1742537199910,178.49222472,128.32,128.31,0.063]
[1742537200115,170.69922472,128.32,128.31,0.063]
[1742537200315,178.49222472,128.32,128.31,0.063]
[1742537200765,42.39222472,128.32,128.31,0.063]
[1742537205437,100.7891236,128.32,128.3,0.063]
[1742537205638,72.9961236,128.31,128.3,0.063]
[1742537206334,14.59922472,128.31,128.3,0.063]
[1742537208768,20.0,128.32,128.3,0.063]
[1742537208937,34.59922472,128.32,128.3,0.063]
[1742537209361,34.59922472,128.31,128.3,0.063]
[1742537209739,20.0,128.31,128.3,0.063]
[1742537209950,34.59922472,128.31,128.3,0.063]
[1742537213874,20.0,128.31,128.3,0.063]
[1742537218583,14.59922472,128.33,128.3,0.063]
[1742537218771,14.62922472,128.34,128.3,0.063]
[1742537221891,0.03,128.34,128.3,14.66222472]
[1742537222191,0.03,128.34,128.31,14.59922472]
[1742537222688,0.03,128.34,128.33,7.7924]
[1742537223302,0.03,128.34,128.33,22.39162472]
[1742537223894,0.03,128.34,128.33,7.7924]
[1742537224099,0.03,128.34,128.32,14.4327]
[1742537224391,0.03,128.34,128.32,29.03192472]
[1742537227113,0.03,128.34,128.33,36.52264786]
[1742537228784,0.03,128.34,128.33,44.31504786]
[1742537234104,0.03,128.34,128.33,44.03072472]
[1742537234907,0.03,128.34,128.33,1.6391]
[1742537235105,0.03,128.34,128.32,29.03192472]
[1742537238411,0.03,128.34,128.33,14.59922472]
[1742537238795,0.03,128.34,128.32,29.03192472]
[1742537240108,0.03,128.34,128.32,22.39192472]
[1742537240314,0.03,128.34,128.32,29.03192472]
[1742537244518,14.62922472,128.34,128.32,6.64]
[1742537244913,14.59922472,128.33,128.31,0.063]
[1742537245122,0.03,128.34,128.31,0.063]
[1742537245123,34.59922472,128.32,128.31,0.063]
[1742537245801,20.0,128.32,128.31,0.063]
[1742537246006,14.59922472,128.33,128.31,0.063]
[1742537247096,22.39192472,128.33,128.31,0.063]
[1742537255037,14.59922472,128.32,128.31,0.063]
[1742537255615,33.24887358,128.32,128.31,0.063]
[1742537256636,41.04187358,128.32,128.31,0.063]
[1742537257935,41.32619672,128.32,128.31,0.063]
[1742537258741,99.7230956,128.32,128.31,0.063]
[1742537259442,99.7230956,128.32,128.27,0.063]
[1742537259443,20.0,128.28,128.27,0.063]
[1742537259641,34.59922472,128.28,128.27,0.063]
[1742537260346,42.39462472,128.28,128.27,0.063]
[1742537263044,61.32859672,128.28,128.27,0.063]
[1742537263824,61.32859672,128.28,128.21,0.063]
[1742537263825,27.7978,128.24,128.21,0.063]
[1742537264134,0.28432314,128.21,128.18,0.063]
[1742537264328,29.6728922,128.23,128.18,0.063]
[1742537264521,14.59922472,128.2,128.18,0.063]
[1742537264728,14.59922472,128.21,128.18,0.063]
[1742537265128,14.59922472,128.22,128.18,0.063]
[1742537265340,14.59922472,128.2,128.18,0.063]
[1742537265537,14.59922472,128.19,128.18,0.063]
[1742537266048,41.04977358,128.19,128.18,0.063]
[1742537266249,41.33409672,128.19,128.18,0.063]
[1742537266449,0.28432314,128.18,128.17,0.063]
[1742537266631,20.0,128.15,128.13,12.27754423]
[1742537266839,14.59922472,128.14,128.13,12.27754423]
[1742537267729,14.59922472,128.14,128.12,0.063]
[1742537268027,20.0,128.15,128.12,0.063]
[1742537268423,14.59922472,128.14,128.12,0.063]
[1742537269129,20.0,128.15,128.12,0.063]
[1742537269329,34.59922472,128.15,128.12,0.063]
[1742537269530,20.0,128.15,128.12,0.063]
[1742537269753,34.59922472,128.15,128.12,0.063]
[1742537269966,14.59922472,128.14,128.12,0.063]
[1742537270631,14.59922472,128.13,128.12,0.063]
[1742537273858,20.0,128.11,128.1,0.063]
[1742537274050,34.59922472,128.11,128.1,0.063]
[1742537274229,20.0,128.11,128.1,0.063]
[1742537274748,150.69922472,128.14,128.1,0.063]
[1742537275867,136.1,128.14,128.1,14.66222472]
[1742537277161,136.1,128.14,128.11,7.8057]
[1742537277364,14.59922472,128.15,128.11,7.8057]
[1742537277662,143.9027,128.16,128.1,7.8692]
[1742537277856,14.59922472,128.13,128.1,7.8692]
[1742537278154,14.59922472,128.14,128.1,7.8692]
[1742537278455,14.59922472,128.15,128.1,22.46842472]
[1742537278660,150.69922472,128.16,128.12,14.59922472]
[1742537278834,14.59922472,128.16,128.11,14.59922472]
[1742537279034,14.59922472,128.16,128.12,7.8051]
[1742537279555,14.59922472,128.13,128.11,7.8055]
[1742537279760,14.59922472,128.13,128.1,7.8693]
[1742537279945,14.59922472,128.14,128.1,7.8693]
[1742537280339,14.59922472,128.15,128.1,22.46852472]
[1742537280538,136.1,128.16,128.12,14.59922472]
[1742537280751,14.59922472,128.17,128.13,14.59922472]
[1742537281131,14.59922472,128.17,128.14,7.8039]
[1742537282059,14.62922472,128.17,128.14,7.8039]
[1742537282252,0.03,128.17,128.14,7.8039]
[1742537282456,0.03,128.17,128.14,22.40312472]
[1742537282636,14.62922472,128.17,128.13,7.8043]
[1742537282833,14.62922472,128.17,128.13,22.40352472]
[1742537283144,34.62922472,128.17,128.13,22.40352472]
[1742537283359,0.03,128.17,128.13,22.40352472]
[1742537285359,14.62922472,128.17,128.12,31.08652472]
[1742537285953,14.59922472,128.15,128.12,7.0]
[1742537286150,14.59922472,128.16,128.12,7.0]
[1742537286338,20.0,128.16,128.13,14.59922472]
[1742537286764,20.0,128.16,128.12,21.59922472]
[1742537286996,14.59922472,128.14,128.11,0.063]
[1742537287183,14.59922472,128.13,128.11,0.063]
[1742537287348,20.0,128.13,128.11,0.063]
[1742537287548,150.69922472,128.16,128.11,14.66222472]
[1742537287846,14.59922472,128.16,128.11,14.66222472]
[1742537288042,14.62922472,128.17,128.12,14.59922472]
[1742537288251,14.59922472,128.16,128.11,0.063]
[1742537288450,14.62922472,128.17,128.12,14.59922472]
[1742537289049,0.03,128.17,128.13,21.59922472]
[1742537289458,14.62922472,128.17,128.13,21.59922472]
[1742537289853,14.62922472,128.17,128.13,7.0]
[1742537290476,14.59922472,128.16,128.13,7.0]
[1742537290999,14.62922472,128.17,128.13,7.0]
[1742537291295,20.0,128.16,128.13,29.40362472]
[1742537291475,0.03,128.17,128.13,29.40362472]
[1742537291668,20.0,128.16,128.14,14.59922472]
[1742537292082,20.0,128.16,128.13,29.40362472]
[1742537298490,0.03,128.17,128.13,29.40362472]
[1742537298794,0.03,128.17,128.13,14.8044]
[1742537298976,0.03,128.17,128.13,29.40362472]
[1742537299895,0.03,128.17,128.14,14.59922472]
[1742537300388,0.03,128.17,128.14,22.40312472]
[1742537300600,0.03,128.17,128.16,14.59922472]
[1742537301379,0.03,128.17,128.15,14.59922472]
[1742537301893,14.62922472,128.17,128.13,14.8043]
[1742537302098,0.03,128.17,128.13,29.40352472]
[1742537302395,0.03,128.17,128.14,14.59922472]
[1742537303684,0.03,128.17,128.15,14.59922472]
[1742537303881,0.03,128.17,128.16,14.59922472]
[1742537304293,0.03,128.17,128.16,22.40192472]
[1742537313406,0.03,128.17,128.16,42.68624786]
[1742537313804,0.03,128.17,128.16,42.970571]
[1742537316199,0.03,128.17,128.16,28.08702314]
[1742537316398,0.03,128.17,128.16,42.68624786]
[1742537319916,0.03,128.17,128.16,20.0]
[1742537320116,0.03,128.17,128.16,26.9]
[1742537320310,0.03,128.17,128.16,41.49922472]
[1742537320915,0.03,128.17,128.16,49.30192472]
[1742537322015,0.03,128.17,128.16,41.49922472]
[1742537322210,0.03,128.17,128.16,6.9]
[1742537324012,0.03,128.17,128.13,14.59922472]
[1742537324219,0.03,128.17,128.13,21.47922472]
[1742537325323,7.8027,128.16,128.13,14.59922472]
[1742537325528,7.8027,128.16,128.12,14.66222472]
[1742537325700,7.8027,128.16,128.12,29.36732472]
[1742537326899,22.43162472,128.17,128.13,14.59922472]
[1742537327118,22.43162472,128.17,128.14,14.59922472]
[1742537327119,0.03,128.17,128.14,14.59922472]
[1742537327296,0.03,128.17,128.14,22.40282472]
[1742537327815,0.03,128.17,128.15,14.59922472]
[1742537330130,0.03,128.17,128.15,22.40232472]
[1742537332731,0.03,128.17,128.15,7.8031]
[1742537333226,0.03,128.17,128.15,22.40232472]
[1742537334229,0.03,128.17,128.14,22.40292472]
[1742537336846,0.03,128.17,128.14,14.59922472]
[1742537337949,0.03,128.17,128.13,22.68804786]
[1742537338834,0.03,128.17,128.13,14.59922472]
[1742537339032,14.59922472,128.16,128.12,0.063]
[1742537339245,14.59922472,128.16,128.13,6.84]
[1742537339558,14.59922472,128.16,128.12,6.903]
[1742537339946,14.59922472,128.16,128.12,14.7081]
[1742537340151,30.25692472,128.17,128.12,29.30732472]
[1742537341236,14.59922472,128.16,128.12,21.50222472]
[1742537341917,14.59922472,128.16,128.12,29.30732472]
[1742537342119,30.25692472,128.17,128.12,29.30732472]
[1742537342748,30.25692472,128.17,128.12,22.46732472]
[1742537343666,30.25692472,128.17,128.12,14.66222472]
[1742537343962,14.59922472,128.16,128.12,0.063]
[1742537344962,30.25692472,128.17,128.12,14.66222472]
[1742537346050,14.59922472,128.16,128.12,0.063]
[1742537346365,14.59922472,128.15,128.12,0.063]
[1742537346549,14.59922472,128.13,128.12,0.063]
[1742537347155,16.14772472,128.13,128.12,0.063]
[1742537348254,23.95222472,128.13,128.12,0.063]
[1742537349428,30.42202472,128.13,128.12,0.063]
[1742537349830,49.07167358,128.13,128.12,0.063]
[1742537351334,30.42202472,128.13,128.12,0.063]
[1742537351831,22.61752472,128.13,128.12,0.063]
[1742537353155,143.9039,128.14,128.12,0.063]
[1742537353156,14.59922472,128.14,128.12,0.063]
[1742537353456,20.0,128.13,128.12,0.063]
[1742537353658,14.59922472,128.14,128.12,0.063]
[1742537354457,20.0,128.13,128.12,0.063]
[1742537355653,150.69922472,128.15,128.12,0.063]
[1742537355847,136.1,128.15,128.12,0.063]
[1742537357840,0.03,128.16,128.13,14.59922472]
[1742537359245,0.03,128.16,128.14,14.59922472]
[1742537359961,0.03,128.16,128.15,29.22252472]
[1742537361363,0.03,128.16,128.15,14.6233]
[1742537362080,0.03,128.16,128.15,6.82]
[1742537362966,0.03,128.16,128.15,14.6233]
[1742537365753,0.03,128.16,128.15,29.22252472]